lending/lending_fUSD_20241113
["ID","MTS","AMOUNT","RATE_DAILY","PERIOD"]
[342169388,1731528482619,-279.719078,0.00013699,2]
[342169389,1731528482647,-279.719078,0.00013699,2]
[342169390,1731528482675,-279.719078,0.00013699,2]
[342169391,1731528482702,-279.719078,0.00013699,2]
[342169392,1731528482730,-279.719078,0.00013699,2]
[342169393,1731528482757,-279.719078,0.00013699,2]
[342169394,1731528482799,-279.719078,0.00013699,2]
[342169395,1731528482829,-279.719078,0.00013699,2]
[342169396,1731528482859,-279.719078,0.00013699,2]
[342169397,1731528482886,-279.719078,0.00013699,2]
[342169398,1731528482914,-279.719078,0.00013699,2]
[342169399,1731528482942,-279.719078,0.00013699,2]
[342169400,1731528482970,-279.719068,0.00013699,2]
[342169401,1731528482998,-200.0,0.00013699,2]
[342169402,1731528483026,-800.0,0.00013699,2]
[342169403,1731528483055,-251.83,0.00013699,2]
[342169404,1731528483163,-800.0,0.00013699,2]
[342169405,1731528483193,-25309.24,0.00013699,2]
[342169406,1731528483221,-800.0,0.00013699,2]
[342169407,1731528483249,-150.0,0.00013699,2]
[342169408,1731528483289,-800.0,0.00013699,2]
[342169409,1731528483322,-164.782862,0.00013699,2]
[342169410,1731528483358,-164.782862,0.00013699,2]
[342169411,1731528483389,-164.782862,0.00013699,2]
[342169412,1731528483417,-164.782862,0.00013699,2]
[342169413,1731528483445,-164.782862,0.00013699,2]
[342169414,1731528483474,-164.782862,0.00013699,2]
[342169415,1731528483503,-164.782862,0.00013699,2]
[342169416,1731528483533,-164.782862,0.00013699,2]
[342169417,1731528483563,-164.782862,0.00013699,2]
[342169418,1731528483593,-164.782862,0.00013699,2]
[342169419,1731528483624,-164.782862,0.00013699,2]
[342169420,1731528483655,-164.782862,0.00013699,2]
[342169421,1731528483684,-164.782862,0.00013699,2]
[342169422,1731528483720,-164.782862,0.00013699,2]
[342169423,1731528483748,-164.782862,0.00013699,2]
[342169424,1731528483793,-164.782862,0.00013699,2]
[342169425,1731528483823,-164.782862,0.00013699,2]
[342169426,1731528483856,-164.782862,0.00013699,2]
[342169427,1731528483888,-164.782862,0.00013699,2]
[342169428,1731528483919,-164.782862,0.00013699,2]
[342169429,1731528483949,-800.0,0.00013699,2]
[342169430,1731528483983,-688.13,0.00013699,2]
[342169431,1731528484012,-500.0,0.00013699,2]
[342169432,1731528484045,-800.0,0.00013699,2]
[342169433,1731528484077,-300.0,0.00013699,2]
[342169434,1731528484109,-800.0,0.00013699,2]
[342169435,1731528484140,-164.37,0.00013699,2]
[342169436,1731528484171,-800.0,0.00013699,2]
[342169437,1731528484203,-500.0,0.00013699,2]
[342169438,1731528484234,-526.15644608,0.00013699,2]
[342169439,1731528484264,-500.0,0.00013699,2]
[342169440,1731528484306,-500.0,0.00013699,2]
[342169441,1731528484337,-500.07177059,0.00013699,2]
[342169442,1731528484367,-299.34555381,0.00013699,2]
[342169443,1731528484397,-162.20340042,0.00013699,2]
[342169444,1731528484426,-500.0,0.00013699,2]
[342169445,1731528484456,-160.54780067,0.00013699,2]
[342169446,1731528484487,-500.0,0.00013699,2]
[342169447,1731528484520,-500.0,0.00013699,2]
[342169448,1731528484559,-161.18234859,0.00013699,2]
[342169449,1731528484590,-500.55329019,0.00013699,2]
[342169450,1731528484620,-500.0,0.00013699,2]
[342169451,1731528484654,-501.25102629,0.00013699,2]
[342169452,1731528484688,-500.0,0.00013699,2]
[342169453,1731528484721,-500.0,0.00013699,2]
[342169454,1731528484753,-161.07637515,0.00013699,2]
[342169455,1731528484792,-513.10598335,0.00013699,2]
[342169456,1731528484826,-500.0,0.00013699,2]
[342169457,1731528484857,-500.0,0.00013699,2]
[342169458,1731528484887,-501.02079083,0.00013699,2]
[342169459,1731528484916,-1250.0,0.000137,2]
[342169460,1731528484946,-1250.0,0.000137,2]
[342169461,1731528484973,-2401.67976564,0.000137,2]
[342169462,1731528485004,-2401.67976564,0.000137,2]
[342169463,1731528485040,-2401.67976564,0.000137,2]
[342169464,1731528485068,-2401.67976564,0.000137,2]
[342169465,1731528485371,-2401.67976564,0.000137,2]
[342169466,1731528485402,-2401.67976564,0.000137,2]
[342169467,1731528485431,-2401.67976564,0.000137,2]
[342169468,1731528485460,-2401.67976564,0.000137,2]
[342169469,1731528485489,-2401.67976564,0.000137,2]
[342169470,1731528485518,-2401.67976564,0.000137,2]
[342169471,1731528485551,-2401.67976564,0.000137,2]
[342169472,1731528485583,-2401.67976564,0.000137,2]
[342169473,1731528485611,-2401.67976564,0.000137,2]
[342169474,1731528485639,-2401.67976564,0.000137,2]
[342169475,1731528485676,-2401.67976564,0.000137,2]
[342169476,1731528485707,-2401.67976564,0.000137,2]
[342169477,1731528485736,-2401.67976564,0.000137,2]
[342169478,1731528485766,-2401.67976564,0.000137,2]
[342169479,1731528485805,-2401.67976564,0.000137,2]
[342169480,1731528485838,-2401.67,0.000137,2]
[342169481,1731528485871,-3602.51964845,0.000137,2]
[342169482,1731528485903,-3602.51964845,0.000137,2]
[342169483,1731528485934,-3602.51964845,0.000137,2]
[342169484,1731528485965,-3602.51964845,0.000137,2]
[342169485,1731528485996,-3602.51964845,0.000137,2]
[342169486,1731528486038,-3602.51964845,0.000137,2]
[342169487,1731528486070,-3602.51964845,0.000137,2]
[342169488,1731528486100,-3602.51964845,0.000137,2]
[342169489,1731528486130,-3602.51964845,0.000137,2]
[342169490,1731528486159,-3602.51964845,0.000137,2]
[342169491,1731528486190,-3602.51964845,0.000137,2]
[342169492,1731528486221,-3602.51964845,0.000137,2]
[342169493,1731528486250,-3602.51964845,0.000137,2]
[342169494,1731528486281,-3602.51964845,0.000137,2]
[342169495,1731528486311,-3602.51964845,0.000137,2]
[342169496,1731528486339,-3602.51964845,0.000137,2]
[342169497,1731528486369,-3602.51964845,0.000137,2]
[342169498,1731528486397,-3602.51964845,0.000137,2]
[342169499,1731528486424,-3602.51964845,0.000137,2]
[342169500,1731528486451,-3602.51,0.000137,2]
[342169501,1731528486479,-169.23,0.000137,2]
[342169502,1731528486509,-169.23,0.000137,2]
[342169503,1731528486544,-169.23,0.000137,2]
[342169504,1731528486576,-169.23,0.000137,2]
[342169505,1731528486606,-50000.0,0.00013744,2]
[342169506,1731528486636,-161.71,0.00013768,2]
[342169507,1731528486665,-5762.3223488,0.00013789,2]
[342169508,1731528486695,-672.0,0.00013794,2]
[342169509,1731528486726,-262.4,0.00013795,2]
[342169510,1731528486757,-7363.11315162,0.000138,2]
[342169511,1731528486802,-1178.37,0.00013835,2]
[342169512,1731528486834,-37298.96272833,0.0001388,2]
[342169513,1731528486864,-269.381618,0.00013908,2]
[342169514,1731528486892,-168.181208,0.00013908,2]
[342169515,1731528486920,-6000.0,0.00013924,3]
[342169516,1731528486952,-277.83311984,0.00013957,2]
[342169517,1731528486983,-1178.37,0.00013972,2]
[342169518,1731528487016,-50000.0,0.00013974,2]
[342169519,1731528487056,-150.0,0.00013975,2]
[342169520,1731528487085,-1239878.23993635,0.00013998,2]
[342169521,1731528487115,-151.0,0.00013998,2]
[342169522,1731528487145,-100000.0,0.00013999,2]
[342169523,1731528487183,-2102347.17297838,0.00014,2]
[342169524,1731528487214,-1185.509529,0.00014,2]
[342169525,1731528487243,-145537.74295915,0.00014,2]
[342169526,1731528487272,-231041.17946503,0.00014,2]
[342169527,1731528487308,-6869754.69795876,0.00014,2]
[342169528,1731528487338,-265.261396,0.00014,2]
[342169529,1731528487368,-1000.0,0.00014,3]
[342169530,1731528487397,-672.939,0.00014033,2]
[342169531,1731528487426,-13637.0,0.00014033,2]
[342169532,1731528487455,-1091.0,0.00014033,2]
[342169533,1731528487482,-150.0,0.00014059,2]
[342169534,1731528487511,-1178.37,0.00014109,2]
[342169535,1731528487542,-150.0,0.00014164,2]
[342169536,1731528487571,-300.0,0.00014192,2]
[342169537,1731528487601,-150.0,0.00014211,2]
[342169538,1731528487630,-1178.37,0.00014246,2]
[342169539,1731528487662,-11765.85,0.00014247,2]
[342169540,1731528487690,-1000.0,0.00014247,2]
[342169541,1731528487720,-1000.0,0.00014247,2]
[342169542,1731528487750,-1000.0,0.00014247,2]
[342169543,1731528487787,-500.23346199,0.00014247,2]
[342169544,1731528487816,-1000.0,0.00014247,2]
[342169545,1731528487845,-1000.0,0.00014247,2]
[342169546,1731528487877,-1000.36947962,0.00014247,2]
[342169547,1731528487906,-1000.0,0.00014247,2]
[342169548,1731528487934,-1000.0,0.00014247,2]
[342169549,1731528487963,-378.76802401,0.00014247,2]
[342169550,1731528487992,-1000.0,0.00014247,2]
[342169551,1731528488020,-269.386699,0.00014279,2]
[342169552,1731528488054,-5762.3223488,0.00014344,2]
[342169553,1731528488082,-150.139,0.00014362,2]
[342169554,1731528488302,-1178.37,0.00014383,2]
[342169555,1731528488332,-1106.28976517,0.0001439,2]
[342169556,1731528488361,-96864.18824979,0.000144,2]
[342169557,1731528488389,-150.0,0.00014414,2]
[342169558,1731528488416,-150.0,0.00014414,2]
[342169559,1731528488444,-150.0,0.00014414,2]
[342169560,1731528488476,-453.0,0.00014414,2]
[342169561,1731528488503,-1255.0,0.00014414,2]
[342169562,1731528488535,-628.0,0.00014414,2]
[342169563,1731528488563,-1207.116,0.00014414,2]
[342169564,1731528488592,-563.0,0.00014414,2]
[342169565,1731528488620,-559.0,0.00014414,2]
[342169566,1731528488649,-810.003,0.00014414,2]
[342169567,1731528488678,-814.0,0.00014414,2]
[342169568,1731528488709,-3745.0,0.00014414,2]
[342169569,1731528488741,-1205.437,0.00014414,2]
[342169570,1731528488771,-483.813,0.00014414,2]
[342169571,1731528488808,-150.0,0.0001442,2]
[342169572,1731528488838,-666.666666,0.00014498,2]
[342169573,1731528488869,-666.666666,0.00014498,2]
[342169574,1731528488896,-666.666666,0.00014498,2]
[342169575,1731528488924,-666.666666,0.00014498,2]
[342169576,1731528488951,-666.666666,0.00014498,2]
[342169577,1731528488979,-666.666666,0.00014498,2]
[342169578,1731528489010,-666.666666,0.00014498,2]
[342169579,1731528489038,-666.666666,0.00014498,2]
[342169580,1731528489065,-666.666666,0.00014498,2]
[342169581,1731528489090,-666.666666,0.00014498,2]
[342169582,1731528489119,-666.666666,0.00014498,2]
[342169583,1731528489147,-666.666666,0.00014498,2]
[342169584,1731528489175,-666.666666,0.00014498,2]
[342169585,1731528489204,-666.666666,0.00014498,2]
[342169586,1731528489233,-666.666666,0.00014498,2]
[342169587,1731528489263,-666.666666,0.00014498,2]
[342169588,1731528489295,-666.666666,0.00014498,2]
[342169589,1731528489326,-666.666666,0.00014498,2]
[342169590,1731528489354,-666.666666,0.00014498,2]
[342169591,1731528489382,-666.666666,0.00014498,2]
[342169592,1731528489408,-666.666666,0.00014498,2]
[342169593,1731528489435,-666.666666,0.00014498,2]
[342169594,1731528489465,-666.666666,0.00014498,2]
[342169595,1731528489495,-666.666666,0.00014498,2]
[342169596,1731528489525,-666.666666,0.00014498,2]
[342169597,1731528489558,-666.666666,0.00014498,2]
[342169598,1731528489588,-666.666666,0.00014498,2]
[342169599,1731528489618,-666.666666,0.00014498,2]
[342169600,1731528489647,-666.666666,0.00014498,2]
[342169601,1731528489676,-666.666666,0.00014498,2]
[342169602,1731528489704,-666.666666,0.00014498,2]
[342169603,1731528489732,-666.666666,0.00014498,2]
[342169604,1731528489763,-769.26551431,0.00014498,2]
[342169605,1731528489800,-123539.59006911,0.000145,3]
[342169606,1731528489831,-1178.37,0.0001452,2]
[342169607,1731528489860,-153.39,0.00014586,2]
[342169608,1731528489890,-155.307,0.000146,2]
[342169609,1731528489919,-168.181208,0.00014603,2]
[342169610,1731528489947,-1178.37,0.00014657,2]
[342169611,1731528489974,-200.0,0.00014677,2]
[342169612,1731528490002,-474.0,0.0001472,2]
[342169613,1731528490030,-202.0,0.0001472,2]
[342169614,1731528490058,-150.0,0.0001478,2]
[342169615,1731528490086,-1178.37,0.00014794,2]
[342169616,1731528490113,-12034.32458372,0.0001485,2]
[342169617,1731528490140,-1730.97,0.00014854,2]
[342169618,1731528490174,-6000.0,0.00014876,3]
[342169619,1731528490205,-3001383.88648789,0.0001488,2]
[342169620,1731528490233,-1000.0,0.00014899,2]
[342169621,1731528490260,-1000.0,0.00014899,2]
[342169622,1731528490293,-866.225,0.00014899,2]
[342169623,1731528490321,-172.19548942,0.000149,2]
[342169624,1731528490349,-5762.3223488,0.000149,2]
[342169625,1731528490378,-2000.0,0.000149,2]
[342169626,1731528490407,-2000.0,0.000149,2]
[342169627,1731528490435,-2000.0,0.000149,2]
[342169628,1731528490466,-2000.0,0.000149,2]
[342169629,1731528490495,-2000.0,0.000149,2]
[342169630,1731528490534,-2000.0,0.000149,2]
[342169631,1731528490565,-2000.0,0.000149,2]
[342169632,1731528490596,-2000.0,0.000149,2]
[342169633,1731528490626,-2000.0,0.000149,2]
[342169634,1731528490656,-2000.0,0.000149,2]
[342169635,1731528490684,-567.45659637,0.000149,2]
[342169636,1731528490713,-213.87173974,0.000149,2]
[342169637,1731528490743,-213.87173974,0.000149,2]
[342169638,1731528490776,-213.87173974,0.000149,2]
[342169639,1731528490816,-3000.0,0.000149,2]
[342169640,1731528490849,-1500.0,0.00014924,2]
[342169641,1731528490880,-1178.37,0.00014931,2]
[342169642,1731528490909,-5800.0,0.00014948,2]
[342169643,1731528490939,-5800.0,0.00014957,2]
[342169644,1731528490971,-5800.0,0.00014965,2]
[342169645,1731528491000,-5800.0,0.00014974,2]
[342169646,1731528491036,-500.0,0.00014981,2]
[342169647,1731528491065,-5800.0,0.00014982,2]
[342169648,1731528491096,-150.0,0.00014985,2]
[342169649,1731528491126,-1332.8458632,0.0001499,2]
[342169650,1731528491155,-1530.2803763,0.0001499,2]
[342169651,1731528491186,-1727.7148894,0.0001499,2]
[342169652,1731528491219,-12307.7584593,0.0001499,2]
[342169653,1731528491251,-14082.6050134,0.0001499,2]
[342169654,1731528491285,-15857.4515675,0.0001499,2]
[342169655,1731528491314,-4080.0013968,0.0001499,2]
[342169656,1731528491345,-4660.1714571,0.0001499,2]
[342169657,1731528491374,-5240.3415174,0.0001499,2]
[342169658,1731528491402,-500.0,0.0001499,2]
[342169659,1731528491888,-5800.0,0.0001499,2]
[342169660,1731528491917,-8500.0,0.00014996,2]
[342169661,1731528491948,-259.49363639,0.00014996,2]
[342169662,1731528491977,-1061813.28868197,0.00014997,2]
[342169663,1731528492005,-150.0,0.00014998,2]
[342169664,1731528492039,-150.0,0.00014998,2]
[342169665,1731528492066,-150.0,0.00014998,2]
[342169666,1731528492092,-150.0,0.00014998,2]
[342169667,1731528492121,-240.17919883,0.00014998,2]
[342169668,1731528492150,-150.05826599,0.00014998,2]
[342169669,1731528492175,-500.0,0.00014998,2]
[342169670,1731528492204,-500.0,0.00014998,2]
[342169671,1731528492230,-500.0,0.00014998,2]
[342169672,1731528492259,-500.0,0.00014998,2]
[342169673,1731528492290,-500.0,0.00014998,2]
[342169674,1731528492316,-500.0,0.00014998,2]
[342169675,1731528492345,-500.0,0.00014998,2]
[342169676,1731528492372,-995.11753921,0.00014998,2]
[342169677,1731528492398,-150.0,0.00014998,2]
[342169678,1731528492426,-150.0,0.00014998,2]
[342169679,1731528492452,-150.0,0.00014998,2]
[342169680,1731528492480,-150.0,0.00014998,2]
[342169681,1731528492508,-150.0,0.00014998,2]
[342169682,1731528492539,-202.80340908,0.00014998,2]
[342169683,1731528492566,-150.0,0.00014998,2]
[342169684,1731528492594,-150.0,0.00014998,2]
[342169685,1731528492621,-166.22167352,0.00014998,2]
[342169686,1731528492649,-150.08147966,0.00014998,2]
[342169687,1731528492676,-150.0,0.00014998,2]
[342169688,1731528492710,-150.0,0.00014998,2]
[342169689,1731528492737,-155.42042867,0.00014998,2]
[342169690,1731528492765,-150.0,0.00014998,2]
[342169691,1731528492805,-150.0,0.00014998,2]
[342169692,1731528492834,-150.0,0.00014998,2]
[342169693,1731528492862,-198.1599224,0.00014998,2]
[342169694,1731528492892,-150.0,0.00014998,2]
[342169695,1731528492920,-264.58685347,0.00014998,2]
[342169696,1731528492950,-500.0,0.00014998,2]
[342169697,1731528492978,-150.0,0.00014998,2]
[342169698,1731528493006,-150.0,0.00014998,2]
[342169699,1731528493039,-150.0,0.00014998,2]
[342169700,1731528493070,-150.0,0.00014998,2]
[342169701,1731528493105,-220.47629833,0.00014998,2]
[342169702,1731528493141,-500.0,0.00014998,2]
[342169703,1731528493177,-500.0,0.00014998,2]
[342169704,1731528493214,-500.0,0.00014998,2]
[342169705,1731528493251,-929.4205988,0.00014998,2]
[342169706,1731528493298,-500.0,0.00014998,2]
[342169707,1731528493338,-500.0,0.00014998,2]
[342169708,1731528493377,-500.0,0.00014998,2]
[342169709,1731528493422,-500.0,0.00014998,2]
[342169710,1731528493457,-500.0,0.00014998,2]
[342169711,1731528493490,-715.06953038,0.00014998,2]
[342169712,1731528493525,-161.60325288,0.00014998,2]
[342169713,1731528493561,-500.0,0.00014998,2]
[342169714,1731528493594,-500.0,0.00014998,2]
[342169715,1731528493629,-687.80914204,0.00014998,2]
[342169716,1731528493664,-991.40495596,0.00014998,2]
[342169717,1731528493702,-150.0,0.00014998,2]
[342169718,1731528493740,-500.0,0.00014998,2]
[342169719,1731528493780,-500.0,0.00014998,2]
[342169720,1731528493840,-500.0,0.00014998,2]
[342169721,1731528493876,-500.0,0.00014998,2]
[342169722,1731528493911,-676.0,0.00014998,2]
[342169723,1731528493947,-500.0,0.00014998,2]
[342169724,1731528493985,-500.0,0.00014998,2]
[342169725,1731528494021,-500.0,0.00014998,2]
[342169726,1731528494055,-500.0,0.00014999,2]
[342169727,1731528494088,-33200.45801173,0.00014999,2]
[342169728,1731528494120,-62994.8413016,0.00014999,2]
[342169729,1731528494153,-500.0,0.00014999,2]
[342169730,1731528494184,-5800.0,0.00014999,2]
[342169731,1731528494213,-827.5,0.00014999,2]
[342169732,1731528494242,-2614.2066335,0.00014999,2]
[342169733,1731528494271,-5800.0,0.00014999,2]
[342169734,1731528494314,-1000.0,0.00014999,2]
[342169735,1731528494345,-1025428.93846352,0.00015,2]
[342169736,1731528494373,-4387.99641564,0.00015,2]
[342169737,1731528494406,-9568203.53695835,0.00015,2]
[342169738,1731528496083,328.14,0.00016658,30]
[342169739,1731528496117,-150.0,0.00012996,2]
[342169740,1731528496150,-150.0,0.00012996,2]
[342169741,1731528496177,-150.0,0.00012996,2]
[342169742,1731528496211,-150.0,0.00012996,2]
[342169743,1731528496252,-150.0,0.00012996,2]
[342169744,1731528496280,-150.0,0.00012996,2]
[342169745,1731528496317,-150.0,0.00012996,2]
[342169746,1731528496346,-150.0,0.00012996,2]
[342169747,1731528496373,-150.0,0.00012996,2]
[342169748,1731528496400,-150.0,0.00012996,2]
[342169749,1731528496440,-150.0,0.0001,2]
[342169750,1731528496468,-150.0,0.0001,2]
[342169751,1731528496501,-150.0,0.0001,2]
[342169752,1731528496532,-150.0,0.0001,2]
[342169753,1731528496569,-150.0,0.0001,2]
[342169754,1731528496626,-150.0,0.0001,2]
[342169755,1731528496656,-150.0,0.0001,2]
[342169756,1731528496684,-150.0,0.0001,2]
[342169757,1731528496712,-150.0,0.0001,2]
[342169758,1731528496742,-150.0,0.0001,2]
[342169759,1731528496776,-150.0,0.0001,2]
[342169760,1731528496824,-150.0,0.0001,2]
[342169761,1731528496855,-150.0,0.0001,2]
[342169762,1731528496891,-150.0,0.0001,2]
[342169763,1731528496924,-150.0,0.0001,2]
[342169764,1731528496962,-150.0,0.0001,2]
[342169765,1731528496992,-150.0,0.0001,2]
[342169766,1731528497028,-150.0,0.0001,2]
[342169767,1731528497061,-150.0,0.0001,2]
[342169768,1731528497095,-150.0,0.0001,2]
[342169769,1731528497132,-150.0,0.0001,2]
[342169770,1731528497163,-150.0,0.0001,2]
[342169771,1731528497196,-150.0,0.0001,2]
[342169772,1731528497231,-150.0,0.0001,2]
[342169773,1731528497260,-153.8955466,0.0001,2]
[342169774,1731528612053,300.0,0.00013999,120]
[342169791,1731528631743,-1000.0,9.8e-05,2]
[342169792,1731528631755,-1000.0,9.8e-05,2]
[342169793,1731528631765,-62324.2898,9.8e-05,2]
[342169794,1731528631775,-2500.0,9.8e-05,2]
[342169795,1731528631785,-1242.0,0.0001,2]
[342169796,1731528631795,-1500.0,0.00010958,2]
[342169797,1731528631810,-311.17,0.00010959,2]
[342169798,1731528631827,-23900.0,0.00011039,2]
[342169799,1731528631836,-5931.0,0.00011614,2]
[342169800,1731528631846,-1159.0,0.00011614,2]
[342169801,1731528631855,-158.792,0.00011614,2]
[342169802,1731528631864,-13637.0,0.00011614,2]
[342169803,1731528631873,-2171.0,0.00011751,2]
[342169804,1731528631889,-250.0,0.00012138,2]
[342169805,1731528631900,-157.83869,0.0001269,2]
[342169806,1731528631909,-157.83869,0.0001269,2]
[342169807,1731528631919,-2726.83469,0.0001269,2]
[342169808,1731528631928,-155.697815,0.0001269,2]
[342169809,1731528631938,-2726.83469,0.0001269,2]
[342169810,1731528631948,-151.0,0.0001269,2]
[342169811,1731528631958,-219.990669,0.0001269,2]
[342169812,1731528631967,-151.0,0.0001269,2]
[342169813,1731528631977,-219.990669,0.0001269,2]
[342169814,1731528631986,-151.0,0.0001269,2]
[342169815,1731528631996,-151.0,0.0001269,2]
[342169816,1731528632005,-151.0,0.0001269,2]
[342169817,1731528632015,-164.628072,0.0001269,2]
[342169818,1731528632024,-164.628072,0.0001269,2]
[342169819,1731528632033,-151.0,0.0001269,2]
[342169820,1731528632043,-887.2663,0.00012897,2]
[342169821,1731528632053,-157.83869,0.000129,2]
[342169822,1731528632063,-157.83869,0.000129,2]
[342169823,1731528632072,-2726.83469,0.000129,2]
[342169824,1731528632081,-2726.83469,0.000129,2]
[342169825,1731528632091,-151.0,0.000129,2]
[342169826,1731528632100,-219.990669,0.000129,2]
[342169827,1731528632110,-151.0,0.000129,2]
[342169828,1731528632119,-219.990669,0.000129,2]
[342169829,1731528632128,-151.0,0.000129,2]
[342169830,1731528632146,-151.0,0.000129,2]
[342169831,1731528632155,-151.0,0.000129,2]
[342169832,1731528632164,-164.628072,0.000129,2]
[342169833,1731528632174,-164.628072,0.000129,2]
[342169834,1731528632185,-151.0,0.000129,2]
[342169835,1731528632195,-28500.0,0.00012996,2]
[342169836,1731528632205,-157.83869,0.00012997,2]
[342169837,1731528632214,-157.83869,0.00012997,2]
[342169838,1731528632224,-157.83869,0.00012997,2]
[342169839,1731528632233,-157.83869,0.00012997,2]
[342169840,1731528632243,-2726.83469,0.00012997,2]
[342169841,1731528632252,-2726.83469,0.00012997,2]
[342169842,1731528632262,-2726.83469,0.00012997,2]
[342169843,1731528632272,-2726.83469,0.00012997,2]
[342169844,1731528632281,-151.0,0.00012997,2]
[342169845,1731528632291,-151.0,0.00012997,2]
[342169846,1731528632300,-219.990669,0.00012997,2]
[342169847,1731528632310,-219.990669,0.00012997,2]
[342169848,1731528632319,-219.990669,0.00012997,2]
[342169849,1731528632329,-219.990669,0.00012997,2]
[342169850,1731528632338,-151.0,0.00012997,2]
[342169852,1731528632348,-151.0,0.00012997,2]
[342169853,1731528632357,-151.0,0.00012997,2]
[342169854,1731528632367,-151.0,0.00012997,2]
[342169855,1731528632374,-151.0,0.00012997,2]
[342169856,1731528632391,-151.0,0.00012997,2]
[342169857,1731528632401,-164.628072,0.00012997,2]
[342169858,1731528632410,-164.628072,0.00012997,2]
[342169860,1731528632421,-164.628072,0.00012997,2]
[342169862,1731528632431,-164.628072,0.00012997,2]
[342169864,1731528632440,-151.0,0.00012997,2]
[342169866,1731528632450,-151.0,0.00012997,2]
[342169868,1731528632460,-151.0,0.00012999,2]
[342169870,1731528632470,-151.0,0.00012999,2]
[342169872,1731528632479,-151.0,0.00012999,2]
[342169874,1731528632489,-151.0,0.00012999,2]
[342169876,1731528632498,-164.628072,0.00012999,2]
[342169878,1731528632508,-164.628072,0.00012999,2]
[342169880,1731528632517,-151.0,0.00012999,2]
[342169882,1731528632527,-157.83869,0.00013,2]
[342169884,1731528632536,-157.83869,0.00013,2]
[342169886,1731528632546,-157.83869,0.00013,2]
[342169887,1731528632555,-157.83869,0.00013,2]
[342169889,1731528632564,-157.83869,0.00013,2]
[342169891,1731528632573,-157.83869,0.00013,2]
[342169892,1731528632583,-157.83869,0.00013,2]
[342169893,1731528632593,-157.83869,0.00013,2]
[342169894,1731528632603,-157.83869,0.00013,2]
[342169895,1731528632613,-157.83869,0.00013,2]
[342169896,1731528632623,-157.83869,0.00013,2]
[342169897,1731528632638,-157.838692,0.00013,2]
[342169898,1731528632648,-2726.83469,0.00013,2]
[342169899,1731528632657,-2726.83469,0.00013,2]
[342169900,1731528632667,-2726.83469,0.00013,2]
[342169901,1731528632678,-2726.83469,0.00013,2]
[342169902,1731528632687,-2726.83469,0.00013,2]
[342169903,1731528632697,-2726.83469,0.00013,2]
[342169904,1731528632708,-2726.83469,0.00013,2]
[342169905,1731528632721,-2726.83469,0.00013,2]
[342169906,1731528632735,-2726.83469,0.00013,2]
[342169907,1731528632750,-2726.83469,0.00013,2]
[342169908,1731528632769,-2726.83469,0.00013,2]
[342169909,1731528632790,-2726.834698,0.00013,2]
[342169910,1731528632808,-151.0,0.00013,2]
[342169911,1731528632828,-151.0,0.00013,2]
[342169912,1731528632848,-151.0,0.00013,2]
[342169913,1731528632868,-219.990669,0.00013,2]
[342169914,1731528632892,-151.0,0.00013,2]
[342169915,1731528632907,-219.990669,0.00013,2]
[342169916,1731528632919,-151.0,0.00013,2]
[342169917,1731528632929,-219.990669,0.00013,2]
[342169918,1731528632939,-219.990669,0.00013,2]
[342169919,1731528632948,-219.990669,0.00013,2]
[342169920,1731528632958,-219.990669,0.00013,2]